bitfinex/quotes_SOLUSD_20251019
["timestamp","ask_amount","ask_price","bid_price","bid_amount"]
[1760860183607,0.2,186.19,186.18,47.41649283]
[1760860183808,0.2,186.19,186.18,20.27649283]
[1760860184027,0.2,186.19,186.18,47.41649283]
[1760860184626,0.2,186.19,186.18,20.27649283]
[1760860184804,0.2,186.19,186.18,47.41649283]
[1760860185129,0.2,186.19,186.18,20.27649283]
[1760860185315,0.2,186.19,186.18,47.41649283]
[1760860187009,0.2,186.19,186.18,20.27649283]
[1760860187205,0.2,186.19,186.18,47.41649283]
[1760860189223,0.2,186.19,186.18,20.27649283]
[1760860189626,0.2,186.19,186.18,47.41649283]
[1760860190827,0.2,186.19,186.18,20.27649283]
[1760860191023,0.2,186.19,186.18,47.41649283]
[1760860191326,0.2,186.19,186.18,20.27649283]
[1760860191526,0.2,186.19,186.18,47.41649283]
[1760860194224,0.2,186.19,186.18,47.39649283]
[1760860194424,0.2,186.19,186.18,20.27649283]
[1760860194833,0.2,186.19,186.18,47.39649283]
[1760860195021,0.2,186.19,186.18,20.27649283]
[1760860195211,0.2,186.19,186.18,47.39649283]
[1760860195827,0.2,186.19,186.18,20.27649283]
[1760860196002,0.2,186.19,186.18,47.39649283]
[1760860198208,0.2,186.19,186.18,20.27649283]
[1760860198806,0.2,186.19,186.18,47.39649283]
[1760860199021,0.2,186.19,186.18,44.06762141]
[1760860199217,0.2,186.19,186.17,5.90853962]
[1760860199424,0.2,186.19,186.17,33.02853962]
[1760860199625,0.2,186.19,186.17,5.90853962]
[1760860200342,0.2,186.19,186.17,0.53714347]
[1760860200641,3.52887142,186.19,186.16,5.3716617]
[1760860201433,3.32887142,186.18,186.15,33.0291531]
[1760860201728,3.32887142,186.18,186.15,5.9091531]
[1760860203242,0.5376055,186.17,186.12,10.87647521]
[1760860203419,3.32887142,186.13,186.07,5.37427761]
[1760860203614,3.32887142,186.1,186.07,27.85]
[1760860203835,3.32887142,186.1,186.08,11.58647521]
[1760860204151,3.32887142,186.11,186.08,11.58647521]
[1760860204347,3.32887142,186.1,186.06,0.71]
[1760860204511,3.32887142,186.1,186.06,11.58647521]
[1760860204832,3.32887142,186.09,186.05,5.3747561]
[1760860205036,3.32887142,186.08,186.05,6.0847561]
[1760860205813,3.32887142,186.09,186.05,6.0847561]
[1760860206231,3.32887142,186.11,186.06,11.58647521]
[1760860206440,3.32887142,186.15,186.09,3.32887142]
[1760860206613,22.88,186.17,186.11,3.32887142]
[1760860206814,4.06647692,186.19,186.14,3.32887142]
[1760860207023,4.06647692,186.19,186.15,0.71]
[1760860207223,3.52887142,186.19,186.14,3.32887142]
[1760860207426,3.52887142,186.19,186.15,0.71]
[1760860207650,3.52887142,186.19,186.16,0.71]
[1760860207941,3.52887142,186.19,186.15,0.71]
[1760860208426,3.52887142,186.19,186.14,8.7010299]
[1760860208623,3.52887142,186.19,186.15,0.71]
[1760860209638,0.2,186.19,186.15,9.94807679]
[1760860209934,0.2,186.19,186.15,6.56920537]
[1760860210740,0.2,186.19,186.16,6.03169795]
[1760860213449,0.2,186.19,186.16,0.66]
[1760860215235,0.2,186.19,186.17,0.66]
[1760860215436,0.2,186.19,186.15,8.70086043]
[1760860215647,0.2,186.19,186.16,4.52604374]
[1760860216257,0.2,186.19,186.17,0.66]
[1760860216633,0.2,186.19,186.18,0.66]
[1760860218042,0.2,186.19,186.16,6.56886602]
[1760860218348,3.52887142,186.19,186.15,0.66]
[1760860218554,3.52887142,186.19,186.16,0.66]
[1760860218764,3.32887142,186.18,186.14,5.37201856]
[1760860219059,3.32887142,186.18,186.14,6.03201856]
[1760860219451,3.32887142,186.17,186.14,6.03201856]
[1760860221050,3.32887142,186.17,186.14,0.66]
[1760860221633,3.32887142,186.18,186.14,0.66]
[1760860222045,0.2,186.19,186.14,0.66]
[1760860222046,3.32887142,186.17,186.14,0.66]
[1760860222250,3.32887142,186.16,186.14,0.66]
[1760860224452,3.32887142,186.17,186.14,0.66]
[1760860228352,3.32887142,186.15,186.12,0.66]
[1760860229743,3.32887142,186.13,186.1,0.66]
[1760860230346,3.32887142,186.13,186.11,0.66]
[1760860230859,3.32887142,186.13,186.12,0.66]
[1760860231164,3.32887142,186.13,186.08,10.87647521]
[1760860231465,3.32887142,186.13,186.09,6.0337166]
[1760860231696,3.32887142,186.13,186.1,0.66]
[1760860231970,3.32887142,186.13,186.11,0.66]
[1760860236889,3.32887142,186.12,186.07,14.86534663]
[1760860237049,3.32887142,186.09,186.05,0.66]
[1760860237254,3.32887142,186.09,186.04,11.41399402]
[1760860237255,3.32887142,186.07,186.06,0.66]
[1760860240575,3.32887142,186.08,186.06,0.66]
[1760860241570,3.32887142,186.07,186.03,0.66]
[1760860241770,3.32887142,186.05,186.03,0.66]
[1760860242655,26.20887142,186.08,186.03,3.98887142]
[1760860242957,22.88,186.08,186.04,3.98887142]
[1760860243161,22.88,186.08,186.05,0.66]
[1760860243359,102.1,186.11,186.06,3.32887142]
[1760860243360,3.32887142,186.11,186.06,3.32887142]
[1760860243564,3.32887142,186.11,186.07,0.66]
[1760860243865,3.32887142,186.08,186.06,0.7]
[1760860244251,3.32887142,186.09,186.06,0.7]
[1760860244452,3.32887142,186.09,186.07,0.7]
[1760860247866,0.5376055,186.12,186.07,0.7]
[1760860248068,3.32887142,186.09,186.07,0.7]
[1760860251482,3.32887142,186.1,186.05,5.37484857]
[1760860251685,3.32887142,186.1,186.06,6.07452187]
[1760860251879,3.32887142,186.11,186.07,0.7]
[1760860253481,0.5376055,186.15,186.07,4.56630356]
[1760860253672,3.32887142,186.13,186.08,6.07389118]
[1760860253878,3.32887142,186.12,186.09,0.7]
[1760860254069,3.32887142,186.11,186.08,0.7]
[1760860254265,3.32887142,186.11,186.07,5.37429697]
[1760860254486,3.32887142,186.11,186.09,0.7]
[1760860255263,3.32887142,186.1,186.09,0.7]
[1760860255462,3.32887142,186.11,186.09,0.7]
[1760860257387,3.32887142,186.1,186.07,5.37429697]
[1760860257569,3.32887142,186.1,186.08,0.7]
[1760860258086,3.32887142,186.11,186.08,0.7]
[1760860258280,3.32887142,186.09,186.08,0.7]
[1760860258476,3.32887142,186.09,186.05,13.43713507]
[1760860258786,3.32887142,186.09,186.07,0.7]
[1760860258964,3.32887142,186.08,186.05,0.7]
[1760860259582,3.32887142,186.08,186.06,0.7]
[1760860260466,3.32887142,186.09,186.06,0.7]
[1760860260867,3.32887142,186.07,186.04,0.7]
[1760860261468,3.32887142,186.07,186.05,0.7]
[1760860261871,3.32887142,186.07,186.06,0.7]
[1760860262082,3.32887142,186.08,186.06,0.7]
[1760860263282,3.32887142,186.07,186.03,16.95192337]
[1760860263480,3.32887142,186.07,186.03,16.25192337]
[1760860263678,3.32887142,186.06,186.04,0.7]
[1760860264198,3.32887142,186.06,186.02,6.07574371]
[1760860264388,3.32887142,186.05,186.03,0.7]
[1760860265480,3.32887142,186.06,186.03,0.7]
[1760860265989,3.32887142,186.06,186.04,0.7]
[1760860267186,3.32887142,186.06,186.02,5.3756538]
[1760860267398,3.32887142,186.06,186.03,0.7]
[1760860267889,3.32887142,186.05,186.01,6.07598989]
[1760860268082,3.32887142,186.05,186.02,0.7]
[1760860268395,3.32887142,186.06,186.02,0.7]
[1760860269091,3.32887142,186.06,186.02,6.07571648]
[1760860269285,3.32887142,186.06,186.03,0.7]
[1760860269797,3.32887142,186.04,186.0,6.06629733]
[1760860270097,3.32887142,186.04,186.01,0.69]
[1760860270671,3.32887142,186.04,186.02,0.69]
[1760860271397,3.32887142,186.05,186.02,0.69]
[1760860271980,3.32887142,186.05,186.0,8.70516875]
[1760860272178,3.32887142,186.05,186.03,0.69]
[1760860272495,3.32887142,186.05,186.01,0.69]
[1760860272690,3.32887142,186.05,186.02,0.69]
[1760860275590,3.32887142,186.05,186.03,0.68]
[1760860275784,3.32887142,186.05,186.01,0.68]
[1760860275985,3.32887142,186.05,186.02,0.68]
[1760860277499,3.32887142,186.03,186.0,0.68]
[1760860277699,3.32887142,186.03,185.99,0.68]
[1760860278691,3.32887142,186.03,185.99,6.05659313]
[1760860278904,3.32887142,186.03,186.0,0.68]
[1760860279208,3.32887142,186.03,186.01,0.68]
[1760860282706,3.32887142,186.04,186.01,0.68]
[1760860282895,22.88,186.05,186.02,0.68]
[1760860283407,3.32887142,186.07,186.02,4.00887142]
[1760860283599,26.20887142,186.07,186.03,0.68]
[1760860284112,105.42887142,186.08,186.03,0.68]
[1760860284412,105.96647692,186.08,186.03,0.68]
[1760860284914,105.42887142,186.08,186.03,0.68]
[1760860285707,105.42887142,186.08,186.03,6.05538485]
[1760860285914,105.96647692,186.08,186.04,0.68]
[1760860286092,105.96647692,186.08,186.05,0.68]
[1760860286591,3.32887142,186.07,186.05,0.68]
[1760860286788,3.32887142,186.07,186.02,8.70458516]
[1760860286994,3.32887142,186.07,186.03,0.68]
[1760860287196,3.32887142,186.07,186.02,5.37571374]
[1760860287406,3.32887142,186.07,186.04,0.68]
[1760860290819,3.32887142,186.07,186.05,0.68]
[1760860290997,4.51414356,186.17,186.05,0.68]
[1760860290998,3.32887142,186.1,186.05,4.00887142]
[1760860291204,3.32887142,186.11,186.06,4.00887142]
[1760860291389,3.32887142,186.11,186.07,0.68]
[1760860291800,3.32887142,186.11,186.05,3.32887142]
[1760860291995,3.32887142,186.11,186.06,0.68]
[1760860292192,3.32887142,186.1,186.05,3.32887142]
[1760860292405,3.32887142,186.1,186.06,0.68]
[1760860292607,3.32887142,186.1,186.05,3.32887142]
[1760860292805,3.32887142,186.1,186.06,0.68]
[1760860293693,3.32887142,186.1,186.07,0.68]
[1760860297310,3.32887142,186.09,186.07,0.68]
[1760860304115,3.32887142,186.09,186.08,0.67]
[1760860304928,3.32887142,186.1,186.06,0.67]
[1760860305094,3.32887142,186.1,186.06,6.04451437]
[1760860305699,3.32887142,186.1,186.07,0.67]
[1760860306505,3.32887142,186.09,186.07,0.67]
[1760860306811,3.32887142,186.08,186.04,6.04515211]
[1760860307013,3.32887142,186.07,186.04,0.67]
[1760860307322,3.32887142,186.06,186.03,6.04540813]
[1760860307523,3.32887142,186.06,186.04,0.67]
[1760860308100,3.32887142,186.06,186.03,5.37540813]
[1760860308417,3.32887142,186.06,186.04,6.04512708]
[1760860308820,3.32887142,186.06,186.05,0.67]
[1760860309121,3.32887142,186.09,186.05,1.20748992]
[1760860309321,3.32887142,186.1,186.06,0.67]
[1760860310221,3.32887142,186.1,186.06,6.04454732]
[1760860310424,3.32887142,186.1,186.07,0.67]
[1760860310816,3.32887142,186.09,186.07,0.67]
[1760860311015,3.32887142,186.08,186.07,0.67]
[1760860311221,3.32887142,186.08,186.05,0.67]
[1760860311521,3.32887142,186.07,186.05,0.67]
[1760860311915,3.32887142,186.08,186.05,0.67]
[1760860312305,3.32887142,186.09,186.05,6.04474353]
[1760860312623,3.32887142,186.09,186.06,0.67]
[1760860312813,3.32887142,186.09,186.07,0.67]
[1760860313218,3.32887142,186.09,186.05,6.04474353]
[1760860313410,3.32887142,186.08,186.04,16.92166334]
[1760860313817,3.32887142,186.08,186.05,0.67]
[1760860314127,3.32887142,186.09,186.05,0.67]
[1760860314306,3.32887142,186.08,186.05,0.67]
[1760860314508,3.32887142,186.08,186.05,6.04488815]
[1760860315329,3.32887142,186.08,186.05,5.37488815]
[1760860315622,3.32887142,186.08,186.06,0.67]
[1760860318033,3.32887142,186.09,186.06,0.67]
[1760860319921,3.32887142,186.08,186.06,0.67]
[1760860322627,0.5376055,186.11,186.06,0.67]
[1760860322936,3.32887142,186.11,186.07,0.67]
[1760860323126,3.32887142,186.09,186.07,0.67]
[1760860323513,3.32887142,186.09,186.05,5.37488815]
[1760860323718,3.32887142,186.09,186.06,0.67]
[1760860323919,3.32887142,186.1,186.06,0.67]
[1760860324835,3.32887142,186.1,186.06,6.04450091]
[1760860325036,3.32887142,186.1,186.07,0.67]
[1760860325631,3.32887142,186.11,186.07,0.67]
[1760860326720,105.42887142,186.12,186.07,6.04419469]
[1760860326920,105.42887142,186.12,186.08,0.67]
[1760860327331,102.1,186.12,186.08,0.67]
[1760860327530,102.1,186.12,186.08,3.99887142]
[1760860327842,105.42887142,186.12,186.08,0.67]
[1760860328048,3.32887142,186.11,186.08,0.67]
[1760860328825,3.32887142,186.11,186.09,0.67]
[1760860332046,102.1,186.12,186.09,6.04363612]
[1760860332238,3.32887142,186.13,186.09,6.04363612]
[1760860332548,3.32887142,186.13,186.1,0.71]
[1760860332850,3.32887142,186.13,186.11,0.71]
[1760860333931,26.20887142,186.15,186.12,0.66]
[1760860334242,3.32887142,186.15,186.12,0.66]
[1760860334435,26.20887142,186.15,186.13,0.66]
[1760860335139,3.32887142,186.15,186.13,0.66]
[1760860335340,105.42887142,186.18,186.13,0.66]
[1760860335851,3.32887142,186.16,186.14,0.66]
[1760860336538,3.32887142,186.16,186.13,5.37255037]
[1760860336841,3.32887142,186.16,186.15,0.66]
[1760860337044,3.32887142,186.16,186.13,6.03255037]
[1760860337259,3.32887142,186.16,186.14,0.66]
[1760860339354,3.32887142,186.17,186.14,6.03228567]
[1760860339656,105.42887142,186.18,186.15,0.66]
[1760860339853,3.32887142,186.18,186.16,0.66]
[1760860340060,3.32887142,186.18,186.14,5.37228567]
[1760860340238,3.52887142,186.19,186.17,0.66]
[1760860340561,0.2,186.19,186.17,6.03142084]
[1760860340746,0.2,186.19,186.18,0.66]
[1760860343343,3.52887142,186.19,186.18,0.66]
[1760860343756,0.2,186.19,186.18,0.66]
[1760860344562,0.2,186.19,186.18,6.0311462]
[1760860347266,0.2,186.19,186.18,9.36001762]
[1760860347436,0.2,186.19,186.18,20.23649283]
[1760860347639,0.2,186.19,186.18,22.38951917]
[1760860348658,0.2,186.19,186.18,19.06064775]
[1760860348963,0.2,186.19,186.18,7.52417254]
[1760860349154,0.2,186.19,186.18,8.18417254]
[1760860350065,0.2,186.19,186.18,0.66]
[1760860350569,0.2,186.19,186.18,6.0311462]
[1760860352445,0.2,186.19,186.18,9.36001762]
[1760860354067,0.2,186.19,186.18,24.10247887]
[1760860354275,0.2,186.19,186.18,20.77360745]
[1760860355856,0.2,186.19,186.18,20.23649283]
[1760860356258,0.2,186.19,186.18,6.0311462]
[1760860356652,0.2,186.19,186.18,8.18428844]
[1760860359881,0.2,186.19,186.18,6.0311462]
[1760860365194,0.2,186.19,186.18,11.51315986]
[1760860365760,0.2,186.19,186.18,8.18428844]
[1760860365963,0.2,186.19,186.18,6.0311462]
[1760860368164,0.04573911,186.22,186.18,6.0311462]
[1760860368365,0.04573911,186.22,186.19,0.66]
[1760860368792,0.04573911,186.22,186.19,6.03071398]
[1760860370097,3.37461053,186.22,186.17,5.37126348]
[1760860370396,3.37461053,186.22,186.17,6.03126348]
[1760860371385,3.32887142,186.21,186.16,18.80100685]
[1760860371584,3.32887142,186.21,186.16,19.46100685]
[1760860372087,3.32887142,186.21,186.16,18.80100685]
[1760860372278,3.32887142,186.21,186.17,0.66]
[1760860372675,3.32887142,186.2,186.16,3.32887142]
[1760860372995,3.32887142,186.18,186.16,0.66]
[1760860373498,0.5376055,186.21,186.16,6.03152998]
[1760860373798,3.32887142,186.21,186.17,0.66]
[1760860373973,3.32887142,186.21,186.18,0.66]
[1760860376289,3.32887142,186.2,186.18,0.66]
[1760860376481,3.32887142,186.19,186.16,5.37170293]
[1760860376678,3.32887142,186.18,186.16,5.37170293]
[1760860376878,3.32887142,186.18,186.16,6.03170293]
[1760860378769,3.32887142,186.18,186.15,5.37194093]
[1760860379376,125.02573911,186.22,186.15,5.37194093]
[1760860379697,3.32887142,186.18,186.15,6.03194093]
[1760860379994,3.32887142,186.18,186.16,0.66]
[1760860380871,3.32887142,186.19,186.17,0.66]
[1760860381092,3.32887142,186.2,186.17,0.66]
[1760860381269,3.32887142,186.2,186.18,0.66]
[1760860381471,3.32887142,186.2,186.16,0.66]
[1760860381685,3.32887142,186.19,186.17,0.66]
[1760860382081,0.5376055,186.21,186.17,0.66]
[1760860382284,3.32887142,186.19,186.17,0.66]
[1760860382672,0.5376055,186.21,186.17,0.66]
[1760860382872,125.02573911,186.22,186.18,0.66]
[1760860383073,3.32887142,186.21,186.18,0.66]
[1760860383991,125.02573911,186.22,186.18,6.03112398]
[1760860384310,3.32887142,186.21,186.16,5.37172324]
[1760860384477,3.32887142,186.2,186.17,0.66]
[1760860384988,3.32887142,186.2,186.16,5.37172324]
[1760860385190,3.32887142,186.19,186.16,6.03172324]
[1760860386698,0.5376055,186.21,186.14,16.15117499]
[1760860386699,3.32887142,186.18,186.14,16.15117499]
[1760860386902,3.32887142,186.15,186.13,0.66]
[1760860387108,3.32887142,186.15,186.12,0.66]
[1760860387400,3.32887142,186.15,186.13,0.66]
[1760860389384,3.32887142,186.15,186.13,6.03256183]
[1760860390103,3.32887142,186.14,186.11,5.37312887]
[1760860390399,23.4176055,186.17,186.11,0.65]
[1760860390400,3.32887142,186.13,186.11,0.65]
[1760860391107,3.32887142,186.12,186.09,16.80552384]
[1760860391309,3.32887142,186.12,186.09,0.65]
[1760860391484,3.32887142,186.12,186.08,21.53035816]
[1760860391810,3.32887142,186.12,186.09,0.65]
[1760860392001,3.32887142,186.12,186.08,21.53035816]
[1760860392304,3.32887142,186.11,186.09,0.65]
[1760860393598,3.32887142,186.1,186.07,0.69]
[1760860393782,3.32887142,186.1,186.08,0.69]
[1760860393980,3.32887142,186.09,186.06,16.15813427]
[1760860394299,3.32887142,186.09,186.07,0.69]
[1760860394881,3.32887142,186.1,186.08,0.69]
[1760860395904,3.32887142,186.1,186.06,5.3745107]
[1760860396115,3.32887142,186.1,186.07,0.69]
[1760860396404,3.32887142,186.09,186.07,0.69]
[1760860397301,3.32887142,186.1,186.08,0.69]
[1760860398013,3.32887142,186.11,186.09,0.69]
[1760860398387,3.32887142,186.11,186.1,0.69]
[1760860398915,22.88,186.12,186.1,0.69]
[1760860399500,102.1,186.15,186.11,0.69]
[1760860399805,128.30887142,186.15,186.11,0.69]
[1760860400193,105.42887142,186.15,186.11,0.69]
[1760860401391,105.42887142,186.15,186.11,6.06309716]
[1760860401710,105.42887142,186.15,186.12,0.69]
[1760860402783,105.42887142,186.15,186.1,10.74655229]
[1760860402985,105.42887142,186.15,186.11,0.69]
[1760860403192,105.42887142,186.15,186.12,0.69]
[1760860403409,105.42887142,186.15,186.1,10.74655229]
[1760860403612,105.42887142,186.15,186.12,0.69]
[1760860403807,105.42887142,186.15,186.13,0.69]
[1760860404001,26.20887142,186.17,186.13,0.69]
[1760860404201,22.88,186.17,186.13,4.01887142]
[1760860404510,3.32887142,186.19,186.14,17.4539531]
[1760860404691,3.32887142,186.19,186.15,0.69]
[1760860404897,3.32887142,186.19,186.16,0.69]
[1760860405311,3.32887142,186.19,186.14,22.8259746]
[1760860405612,3.32887142,186.19,186.15,0.69]
[1760860405791,3.32887142,186.19,186.16,0.69]
[1760860407414,3.32887142,186.2,186.17,0.69]
[1760860407596,3.32887142,186.2,186.16,6.06163479]
[1760860407914,3.32887142,186.17,186.16,16.1503055]
[1760860408204,3.32887142,186.17,186.14,14.12077426]
[1760860408386,3.32887142,186.17,186.14,13.43077426]
[1760860408586,3.32887142,186.17,186.15,0.69]
[1760860408992,3.32887142,186.17,186.15,4.01887142]
[1760860409192,0.5376055,186.2,186.15,4.01887142]
[1760860409403,3.32887142,186.17,186.15,4.01887142]
[1760860409604,3.32887142,186.18,186.16,0.69]
[1760860409906,3.32887142,186.19,186.15,8.70088223]
[1760860410092,3.32887142,186.2,186.17,0.69]
[1760860411190,3.32887142,186.19,186.17,0.69]
[1760860411613,3.32887142,186.19,186.16,5.37170224]
[1760860411800,3.32887142,186.19,186.18,0.69]
[1760860412009,3.32887142,186.2,186.18,0.69]
[1760860413496,3.32887142,186.2,186.16,9.39057366]
[1760860413697,3.32887142,186.2,186.17,0.69]
[1760860413897,3.32887142,186.19,186.17,0.69]
[1760860414795,3.32887142,186.19,186.16,8.70057366]
[1760860415094,3.32887142,186.19,186.16,0.69]
[1760860415810,3.32887142,186.18,186.16,0.69]
[1760860416513,3.32887142,186.18,186.15,14.07254689]
[1760860416993,3.32887142,186.17,186.15,8.70057366]
[1760860417195,3.32887142,186.17,186.15,0.69]
[1760860420121,3.32887142,186.16,186.13,20.1350821]
[1760860420319,3.32887142,186.16,186.13,6.06253521]
[1760860420901,3.86647692,186.18,186.14,0.69]
[1760860421219,0.5376055,186.18,186.14,6.06209086]
[1760860421421,0.5376055,186.18,186.14,5.37209086]
[1760860421615,0.5376055,186.18,186.15,0.69]
[1760860423815,3.86647692,186.18,186.15,0.69]
[1760860424015,3.86647692,186.18,186.16,0.7]
[1760860424325,3.86647692,186.18,186.15,0.7]
[1760860424527,3.86647692,186.18,186.16,0.7]
[1760860425322,3.32887142,186.17,186.16,0.7]
[1760860425524,0.5376055,186.18,186.14,5.37209086]
[1760860425719,3.86647692,186.18,186.17,0.7]
[1760860425919,3.86647692,186.18,186.16,0.7]
[1760860427123,3.86647692,186.18,186.17,0.7]
[1760860428735,3.86647692,186.18,186.15,0.7]
[1760860429033,3.86647692,186.18,186.16,0.7]
[1760860430813,3.86647692,186.18,186.17,0.7]
[1760860431026,3.32887142,186.18,186.17,0.7]
[1760860431410,105.42887142,186.19,186.17,0.7]
[1760860431615,102.1,186.19,186.17,0.7]
[1760860432011,102.1,186.19,186.17,6.07141744]
[1760860432423,102.1,186.19,186.18,0.7]
[1760860432735,0.04573911,186.22,186.18,4.02887142]
[1760860432936,0.04573911,186.22,186.19,0.7]
[1760860433116,3.37461053,186.22,186.19,0.7]
[1760860433317,3.37461053,186.22,186.2,0.7]
[1760860433625,3.37461053,186.22,186.21,0.7]
[1760860433832,3.37461053,186.22,186.19,3.37461053]
[1760860434024,3.37461053,186.22,186.19,4.07461053]
[1760860434224,3.37461053,186.22,186.2,0.7]
[1760860434425,3.37461053,186.22,186.19,0.7]
[1760860434734,3.37461053,186.22,186.2,0.7]
[1760860440432,3.37461053,186.22,186.21,0.7]
[1760860440618,3.37461053,186.22,186.2,0.7]
[1760860441242,0.04573911,186.22,186.21,0.7]
[1760860441543,0.1,186.23,186.22,10.87647521]
[1760860441730,0.1,186.24,186.22,14.90534663]
[1760860441930,0.1,186.26,186.24,10.87647521]
[1760860442130,0.1,186.26,186.25,14.74225938]
[1760860442527,0.1,186.26,186.25,15.44225938]
[1760860442725,0.1,186.26,186.25,22.96348653]
[1760860444238,0.1,186.26,186.25,19.63461511]
[1760860444439,0.1,186.26,186.25,22.96348653]
[1760860445044,0.1,186.26,186.25,18.93461511]
[1760860445345,0.1,186.26,186.25,0.7]
[1760860446046,0.1,186.26,186.24,3.42887142]
[1760860446345,3.42887142,186.26,186.23,16.94617933]
[1760860446657,0.1,186.26,186.24,0.7]
[1760860448839,0.1,186.26,186.23,19.57505075]
[1760860449041,3.32887142,186.25,186.21,5.37026613]
[1760860449242,3.32887142,186.24,186.22,0.7]
[1760860449829,3.32887142,186.25,186.22,0.7]
[1760860455055,0.1,186.26,186.23,0.7]
[1760860455546,0.1,186.26,186.24,0.7]
[1760860457734,3.42887142,186.26,186.22,6.06990915]
[1760860457935,3.32887142,186.24,186.22,6.06990915]
[1760860459257,0.1,186.26,186.22,6.06990915]
[1760860459451,3.32887142,186.25,186.22,6.06990915]
[1760860460046,3.32887142,186.25,186.22,0.7]
[1760860460446,0.6376055,186.26,186.22,0.7]
[1760860460447,3.32887142,186.24,186.22,0.7]
[1760860460651,3.32887142,186.24,186.2,8.69938467]
[1760860460845,3.32887142,186.24,186.21,0.7]
[1760860461161,3.32887142,186.24,186.2,8.69938467]
[1760860461349,3.32887142,186.23,186.21,0.7]
[1760860461741,3.32887142,186.23,186.2,6.07051325]
[1760860462141,3.32887142,186.23,186.21,0.7]
[1760860465460,3.32887142,186.23,186.18,14.20534663]
[1760860465461,3.32887142,186.22,186.19,5.37085772]
[1760860465944,3.32887142,186.22,186.19,6.07085772]
[1760860466259,3.32887142,186.21,186.2,0.7]
[1760860467257,3.32887142,186.21,186.18,0.7]
[1760860467862,3.32887142,186.21,186.19,0.7]
[1760860468558,3.32887142,186.21,186.2,0.7]
[1760860468751,3.32887142,186.22,186.2,0.7]
[1760860470571,3.32887142,186.21,186.18,6.07100267]
[1760860470771,3.32887142,186.21,186.18,0.7]
[1760860472253,3.32887142,186.2,186.16,5.3717031]
[1760860472454,3.32887142,186.2,186.14,16.75895625]
[1760860472455,3.32887142,186.2,186.17,0.7]
[1760860472667,3.32887142,186.21,186.18,0.7]
[1760860472861,3.32887142,186.22,186.19,0.7]
[1760860473060,3.32887142,186.22,186.2,0.7]
[1760860473461,3.32887142,186.22,186.18,0.7]
[1760860473662,3.32887142,186.21,186.19,0.7]
[1760860475486,3.57887142,186.2,186.15,0.7]
[1760860475653,3.32887142,186.18,186.15,0.7]
[1760860475850,3.32887142,186.18,186.16,0.7]
[1760860476072,3.32887142,186.18,186.17,0.7]
[1760860476668,3.32887142,186.18,186.15,5.37184263]
[1760860476875,3.32887142,186.17,186.14,6.07225481]
[1760860477876,3.32887142,186.16,186.13,10.87647521]
[1760860478055,3.32887142,186.16,186.13,11.57647521]
[1760860479066,3.32887142,186.16,186.13,0.7]
[1760860479266,3.32887142,186.15,186.13,0.7]
[1760860480066,3.32887142,186.16,186.13,0.7]
[1760860482080,3.32887142,186.16,186.12,5.37259478]
[1760860482271,3.32887142,186.16,186.14,0.7]
[1760860482472,3.32887142,186.17,186.14,0.7]
[1760860483686,0.5376055,186.2,186.15,0.68]
[1760860483867,3.32887142,186.18,186.13,5.37246143]
[1760860484067,3.32887142,186.17,186.14,0.68]
[1760860487289,0.7876055,186.16,186.12,5.37272598]
[1760860487490,3.32887142,186.16,186.13,0.68]
[1760860487668,3.32887142,186.16,186.12,5.37272598]
[1760860487869,3.32887142,186.17,186.14,0.68]
[1760860488074,3.32887142,186.18,186.14,0.68]
[1760860488274,3.32887142,186.18,186.15,0.68]
[1760860490091,3.32887142,186.16,186.12,6.05286402]
[1760860490591,3.32887142,186.16,186.13,0.68]
[1760860491089,3.32887142,186.16,186.14,0.68]
[1760860492475,3.32887142,186.16,186.12,0.68]
[1760860492476,3.32887142,186.15,186.12,0.68]
[1760860492790,3.32887142,186.14,186.12,0.68]
[1760860495093,3.32887142,186.15,186.12,0.68]
[1760860495785,3.32887142,186.15,186.11,5.37316371]
[1760860495988,3.32887142,186.15,186.12,0.68]